bitfinex-derivatives/quotes_BTCF0:USTF0_20241103
["timestamp","ask_amount","ask_price","bid_price","bid_amount"]
[1730620646292,0.074096,68427.0,68426.0,0.001]
[1730620646584,0.076096,68427.0,68426.0,0.001]
[1730620647884,0.076096,68427.0,68426.0,0.04484032]
[1730620648583,0.076096,68427.0,68426.0,0.001]
[1730620650495,0.436896,68427.0,68426.0,0.001]
[1730620655102,0.436896,68427.0,68426.0,0.04485009]
[1730620655494,0.436896,68427.0,68426.0,0.001]
[1730620657791,0.076096,68427.0,68426.0,0.001]
[1730620657997,0.436896,68427.0,68426.0,0.001]
[1730620662107,0.076096,68427.0,68426.0,0.001]
[1730620666014,0.076096,68427.0,68426.0,0.05944949]
[1730620668003,0.076096,68427.0,68426.0,0.001]
[1730620671113,0.076096,68427.0,68426.0,0.05948296]
[1730620674512,0.076096,68427.0,68426.0,0.001]
[1730620682706,0.436896,68427.0,68426.0,0.001]
[1730620684023,0.076096,68427.0,68426.0,0.001]
[1730620684230,0.436896,68427.0,68426.0,0.001]
[1730620686618,0.436896,68427.0,68426.0,0.43944]
[1730620687020,0.436896,68427.0,68426.0,0.47164]
[1730620687712,0.436896,68427.0,68426.0,0.0332]
[1730620687906,0.436896,68427.0,68426.0,0.47164]
[1730620688112,0.076096,68427.0,68426.0,0.0332]
[1730620688417,0.076096,68427.0,68426.0,0.1063037]
[1730620688616,0.076096,68427.0,68426.0,0.0332]
[1730620692317,0.436896,68427.0,68426.0,0.0332]
[1730620694821,0.076096,68427.0,68426.0,0.0332]
[1730620696921,0.076096,68427.0,68426.0,0.544737]
[1730620697228,0.076096,68427.0,68426.0,0.64330131]
[1730620697612,0.076096,68427.0,68426.0,0.64316739]
[1730620702225,0.076096,68427.0,68426.0,0.64306313]
[1730620703323,0.003,68427.0,68426.0,0.64306313]
[1730620703523,0.003,68427.0,68426.0,0.94962133]
[1730620703727,0.003,68427.0,68426.0,0.86189689]
[1730620706738,0.003,68427.0,68426.0,0.86172778]
[1730620711429,0.003,68427.0,68426.0,0.86171097]
[1730620714344,0.003,68427.0,68426.0,0.94943541]
[1730620716844,0.003,68427.0,68426.0,0.86171097]
[1730620717041,0.003,68427.0,68426.0,0.94943541]
[1730620720852,0.003,68427.0,68426.0,0.94946614]
[1730620722357,0.003,68427.0,68426.0,0.94937689]
[1730620722556,0.003,68427.0,68426.0,0.94937182]
[1730620723257,0.003,68427.0,68426.0,0.86172568]
[1730620724657,0.003,68427.0,68426.0,0.97866326]
[1730620724857,0.003,68427.0,68426.0,0.86172568]
[1730620725557,0.003,68427.0,68426.0,0.97863339]
[1730620727056,0.003,68427.0,68426.0,0.86168499]
[1730620727461,0.003,68427.0,68426.0,0.97869624]
[1730620731461,0.003,68427.0,68426.0,0.8735712]
[1730620732465,0.003,68427.0,68426.0,0.8735711]
[1730620733971,0.003,68427.0,68426.0,0.9642111]
[1730620734968,0.003,68427.0,68426.0,0.9643566]
[1730620737774,0.003,68427.0,68426.0,1.05208779]
[1730620738477,0.003,68427.0,68426.0,0.9643566]
[1730620739478,0.003,68427.0,68426.0,0.9322226]
[1730620739675,0.003,68427.0,68426.0,1.04940528]
[1730620739877,0.003,68427.0,68426.0,0.61096528]
[1730620740274,0.003,68427.0,68426.0,1.04940528]
[1730620741479,0.003,68427.0,68426.0,1.04483381]
[1730620741686,0.003,68427.0,68426.0,1.04940546]
[1730620741869,0.003,68427.0,68426.0,1.04209082]
[1730620742168,0.003,68427.0,68426.0,1.04940546]
[1730620743184,0.003,68427.0,68426.0,0.61096546]
[1730620743371,0.003,68427.0,68426.0,1.04940546]
[1730620743684,0.003,68427.0,68426.0,0.61096546]
[1730620745280,0.003,68427.0,68426.0,0.59907917]
[1730620745584,0.003,68427.0,68426.0,0.61096554]
[1730620746173,0.0313,68433.0,68432.0,0.07309]
[1730620746382,0.0313,68433.0,68432.0,0.17210162]
[1730620746974,0.0313,68433.0,68432.0,0.09901162]
[1730620747278,0.104389,68433.0,68432.0,0.09901162]
[1730620747480,0.07309,68432.0,68431.0,0.0232225]
[1730620747682,0.073096,68427.0,68426.0,0.001]
[1730620747877,0.0731,68423.0,68422.0,0.08774693]
[1730620748278,0.0731,68423.0,68421.0,0.08774693]
[1730620748480,0.0304,68422.0,68421.0,0.08774693]
[1730620748885,0.0304,68422.0,68419.0,0.08774693]
[1730620749276,0.0304,68422.0,68418.0,0.08774693]
[1730620749478,0.0304,68422.0,68417.0,0.08774693]
[1730620749780,0.0314,68422.0,68421.0,0.002]
[1730620750290,0.104501,68422.0,68421.0,0.002]
[1730620750478,0.0304,68422.0,68419.0,0.003]
[1730620750674,0.084302,68421.0,68419.0,0.003]
[1730620750986,0.084302,68421.0,68417.0,0.002]
[1730620751295,0.0303,68420.0,68417.0,0.002]
[1730620752397,0.0303,68420.0,68416.0,0.3608]
[1730620752690,0.0303,68420.0,68417.0,0.003]
[1730620753184,0.0323,68420.0,68417.0,0.003]
[1730620755497,0.002,68420.0,68418.0,0.073105]
[1730620756093,0.002,68420.0,68419.0,0.073104]
[1730620757494,0.002,68420.0,68419.0,0.076104]
[1730620758400,0.001,68420.0,68419.0,0.076104]
[1730620758699,0.002,68420.0,68419.0,0.077104]
[1730620763982,0.002,68420.0,68419.0,0.2954534]
[1730620765996,0.3608,68429.0,68424.0,0.073098]
[1730620766993,0.3608,68429.0,68426.0,0.05838354]
[1730620767596,0.3618,68429.0,68426.0,0.05838354]
[1730620767794,0.3618,68429.0,68427.0,0.05838354]
[1730620768098,0.3618,68429.0,68428.0,0.05838354]
[1730620769192,0.3658,68429.0,68428.0,0.05838354]
[1730620770290,0.3658,68429.0,68427.0,0.0308]
[1730620770486,0.3648,68429.0,68428.0,0.002]
[1730620770700,0.3658,68429.0,68428.0,0.002]
[1730620771400,0.3658,68429.0,68427.0,0.0328]
[1730620771601,0.005,68429.0,68427.0,0.0328]
[1730620772197,0.005,68429.0,68428.0,0.002]
[1730620772402,0.005,68429.0,68428.0,0.075095]
[1730620773901,0.005,68429.0,68428.0,0.17361799]
[1730620774408,0.005,68429.0,68428.0,0.17161799]
[1730620775097,0.005,68429.0,68428.0,0.1735912]
[1730620775291,0.005,68429.0,68428.0,0.075095]
[1730620775495,0.005,68429.0,68428.0,0.17357708]
[1730620779889,0.005,68429.0,68428.0,0.075095]
[1730620780089,0.005,68429.0,68428.0,0.17362714]
[1730620781101,0.3608,68436.0,68435.0,0.073087]
[1730620781304,0.3608,68436.0,68435.0,0.13152004]
[1730620781501,0.3608,68436.0,68435.0,0.073087]
[1730620782601,0.3718,68436.0,68435.0,0.073087]
[1730620782907,0.3728,68436.0,68435.0,0.073087]
[1730620784108,0.3728,68436.0,68435.0,0.13151367]
[1730620787108,0.3728,68436.0,68435.0,0.17640462]
[1730620788911,0.3728,68436.0,68435.0,0.11797795]
[1730620790519,0.3728,68436.0,68435.0,0.073087]
[1730620794416,0.3728,68436.0,68432.0,0.09064]
[1730620794720,0.3728,68436.0,68433.0,0.073089]
[1730620795519,0.3718,68436.0,68433.0,0.073089]
[1730620795716,0.3728,68436.0,68433.0,0.073089]
[1730620796620,0.3728,68436.0,68433.0,0.074089]
[1730620797721,0.3728,68436.0,68433.0,0.001]
[1730620798715,0.073088,68434.0,68433.0,0.001]
[1730620799923,0.009,68434.0,68433.0,0.001]
[1730620801037,0.009,68434.0,68433.0,0.0993556]
[1730620801518,0.3698,68434.0,68433.0,0.0993556]
[1730620802528,0.442888,68434.0,68433.0,0.0993556]
[1730620805425,0.442888,68434.0,68433.0,0.18708705]
[1730620805625,0.442888,68434.0,68433.0,0.0993556]
[1730620807417,0.082088,68434.0,68433.0,0.0993556]
[1730620807626,0.442888,68434.0,68433.0,0.0993556]
[1730620808127,0.442888,68434.0,68433.0,0.001]
[1730620808832,0.442888,68434.0,68433.0,0.09908786]
[1730620809723,0.881288,68434.0,68433.0,0.001]
[1730620810031,0.881288,68434.0,68433.0,0.17226083]
[1730620810425,0.881288,68434.0,68433.0,0.0740876]
[1730620811225,0.881288,68434.0,68433.0,0.17223253]
[1730620811428,0.881288,68434.0,68433.0,0.0740876]
[1730620811628,0.881288,68434.0,68433.0,0.17221011]
[1730620812825,0.881288,68434.0,68433.0,0.09912251]
[1730620814334,0.913788,68434.0,68433.0,0.09912251]
[1730620814519,0.913788,68434.0,68433.0,0.17216799]
[1730620815733,0.913788,68434.0,68433.0,0.09912251]
[1730620815927,0.913788,68434.0,68433.0,0.17216305]
[1730620816533,0.913788,68434.0,68433.0,0.09912251]
[1730620817224,0.913788,68434.0,68433.0,0.09904095]
[1730620820126,0.913788,68434.0,68433.0,0.09903923]
[1730620820528,0.913788,68434.0,68433.0,0.0990414]
[1730620820734,0.566028,68434.0,68433.0,0.0990414]
[1730620820940,1.004428,68434.0,68433.0,0.0990414]
[1730620825735,1.004428,68434.0,68433.0,0.07406013]
[1730620825946,1.004428,68434.0,68433.0,0.001]
[1730620826441,1.304428,68434.0,68433.0,0.001]
[1730620827446,1.004428,68434.0,68433.0,0.001]
[1730620830043,1.004428,68434.0,68433.0,0.05945295]
[1730620830244,1.004428,68434.0,68433.0,0.001]
[1730620830434,1.304428,68434.0,68433.0,0.001]
[1730620830638,1.004428,68434.0,68433.0,0.05944805]
[1730620831045,1.304428,68434.0,68433.0,0.05944805]
[1730620831439,1.314428,68434.0,68433.0,0.05944805]
[1730620831638,1.005428,68434.0,68433.0,0.05844595]
[1730620831839,1.016428,68434.0,68433.0,0.05944595]
[1730620832035,1.316428,68434.0,68433.0,0.05944595]
[1730620834753,1.23309,68432.0,68431.0,0.06453228]
[1730620836353,1.32373,68432.0,68431.0,0.06453228]
[1730620836744,1.34373,68432.0,68431.0,0.06453228]
[1730620839654,0.66633125,68432.0,68431.0,0.06453228]
[1730620839954,0.94953125,68432.0,68431.0,0.06453228]
[1730620841552,0.94957125,68432.0,68431.0,0.06453228]
[1730620842953,0.85889125,68432.0,68431.0,0.06453228]
[1730620843152,0.94957125,68432.0,68431.0,0.06453228]
[1730620844056,1.38797125,68432.0,68431.0,0.06453228]
[1730620845350,0.94957125,68432.0,68431.0,0.06453228]
[1730620845851,0.22797125,68432.0,68431.0,0.06453228]
[1730620846056,0.94953125,68432.0,68431.0,0.06453228]
[1730620847652,0.22793125,68432.0,68431.0,0.06453228]
[1730620847854,0.94953125,68432.0,68431.0,0.06453228]
[1730620849054,0.22793125,68432.0,68431.0,0.06453228]
[1730620849249,0.94953125,68432.0,68431.0,0.06453228]
[1730620853855,0.94953125,68432.0,68431.0,0.13759241]
[1730620854251,0.94953125,68432.0,68431.0,0.23601866]
[1730620854457,0.94953125,68432.0,68431.0,0.16295853]
[1730620854657,0.94953125,68432.0,68431.0,0.09842625]
[1730620857354,0.94953125,68432.0,68431.0,0.09846806]
[1730620860579,0.22793125,68432.0,68431.0,0.09846806]
[1730620860774,0.94953125,68432.0,68431.0,0.09846806]
[1730620860970,0.87644125,68432.0,68431.0,0.09847117]
[1730620861167,0.94953125,68432.0,68431.0,0.09847117]
[1730620862977,0.94953125,68432.0,68431.0,0.17161702]
[1730620863564,0.94953125,68432.0,68413.0,0.06453228]
[1730620863565,1.31484125,68432.0,68428.0,0.07314604]
[1730620863765,0.13762628,68429.0,68428.0,0.07314604]
[1730620864073,0.073095,68428.0,68427.0,0.07314604]
[1730620864376,0.073095,68428.0,68427.0,0.17189895]
[1730620864574,0.073095,68428.0,68427.0,0.07314604]
[1730620865170,0.073095,68428.0,68427.0,0.13767832]
[1730620865572,0.073095,68428.0,68427.0,0.06453228]
[1730620865969,0.085095,68428.0,68427.0,0.06453228]
[1730620866369,0.175735,68428.0,68427.0,0.06453228]
[1730620867584,0.085095,68428.0,68427.0,0.06453228]
[1730620867785,0.175735,68428.0,68427.0,0.06453228]
[1730620869173,0.175735,68428.0,68427.0,0.09683228]
[1730620870075,0.175735,68428.0,68427.0,0.1954536]
[1730620870681,0.012,68428.0,68427.0,0.2685496]
[1730620871081,0.012,68428.0,68427.0,0.35628105]
[1730620871874,0.085095,68428.0,68427.0,0.35628105]
[1730620873191,0.445895,68428.0,68427.0,0.35628105]
[1730620875081,0.445895,68428.0,68427.0,0.2685496]
[1730620878883,0.445895,68428.0,68427.0,0.26822433]
[1730620879079,0.445895,68428.0,68427.0,0.19512833]
[1730620882289,0.445895,68428.0,68427.0,0.13059605]
[1730620883590,0.445895,68428.0,68427.0,0.13055518]
[1730620884187,0.445895,68428.0,68427.0,0.21828663]
[1730620889088,0.445895,68428.0,68427.0,0.13055518]
[1730620889497,0.445895,68428.0,68427.0,0.21826974]
[1730620890189,0.085095,68428.0,68427.0,0.21826974]
[1730620890398,0.445895,68428.0,68427.0,0.21826974]
[1730620895702,0.445895,68428.0,68427.0,0.13055518]
[1730620897589,0.445895,68428.0,68427.0,0.13074806]
[1730620899688,0.445895,68428.0,68427.0,0.21850983]
[1730620900603,0.445895,68428.0,68427.0,0.09844806]
[1730620902186,0.445895,68428.0,68427.0,0.21584427]
[1730620903903,0.445895,68428.0,68427.0,0.09844806]
[1730620906692,0.3728,68428.0,68426.0,0.13762828]
[1730620906898,0.445895,68428.0,68427.0,0.18628339]
[1730620907097,0.445895,68428.0,68427.0,0.25937939]
[1730620907399,0.445895,68428.0,68427.0,0.28888732]
[1730620908503,0.445895,68428.0,68427.0,0.21579132]
[1730620909506,0.439895,68428.0,68427.0,0.21579132]
[1730620909706,0.445895,68428.0,68427.0,0.21579132]
[1730620910602,0.445895,68428.0,68427.0,0.09850072]
[1730620911401,0.445895,68428.0,68427.0,0.09835506]
[1730620915611,0.445895,68428.0,68427.0,0.09853949]
[1730620922406,0.536535,68428.0,68427.0,0.09853949]
[1730620930626,0.175735,68428.0,68427.0,0.09853949]
[1730620930817,0.536535,68428.0,68427.0,0.09853949]
[1730620931531,0.536535,68428.0,68427.0,0.09841915]
[1730620933223,0.445895,68428.0,68427.0,0.09841915]
[1730620933425,0.536535,68428.0,68427.0,0.09841915]
[1730620935616,0.536535,68428.0,68427.0,0.09774033]
[1730620936218,0.30225967,68427.0,68425.0,0.08775986]
[1730620936432,0.3608,68440.0,68439.0,0.073083]
[1730620936621,0.3608,68440.0,68439.0,0.13761528]
[1730620936822,0.073081,68441.0,68439.0,0.13761528]
[1730620937021,0.073079,68443.0,68441.0,0.073081]
[1730620937227,0.07527247,68442.0,68441.0,0.073081]
[1730620938631,0.08527247,68442.0,68441.0,0.073081]
[1730620940222,0.08527247,68442.0,68441.0,0.14599776]
[1730620941022,0.09427247,68442.0,68441.0,0.14699776]
[1730620941321,0.09427247,68442.0,68441.0,0.074081]
[1730620950730,0.02119247,68442.0,68441.0,0.074081]
[1730620952640,0.00919247,68442.0,68441.0,0.074081]
[1730620952836,0.00919247,68442.0,68441.0,0.075081]
[1730620952837,0.01619247,68442.0,68441.0,0.075081]
[1730620956237,0.01619247,68442.0,68441.0,0.11930907]
[1730620957836,0.01619247,68442.0,68441.0,0.18384135]
[1730620958927,0.014,68442.0,68441.0,0.62216135]
[1730620959128,0.014,68442.0,68441.0,0.93598193]
[1730620960539,0.014,68442.0,68441.0,0.9359181]
[1730620961028,0.014,68442.0,68441.0,1.2359181]
[1730620961541,0.3608,68447.0,68446.0,0.073075]
[1730620961749,0.3608,68455.0,68454.0,0.073067]
[1730620962539,0.103264,68457.0,68456.0,0.073065]
[1730620962742,0.3608,68464.0,68460.0,0.073059]
[1730620962743,0.073059,68461.0,68460.0,0.073059]
[1730620963045,0.073059,68461.0,68460.0,0.13759128]
[1730620963438,0.00219164,68462.0,68460.0,0.06453228]
[1730620963634,0.00219164,68462.0,68461.0,0.073059]
[1730620965348,0.01019164,68462.0,68461.0,0.074059]
[1730620965539,0.01019164,68462.0,68461.0,0.075059]
[1730620965740,0.01519164,68462.0,68461.0,0.075059]
[1730620966140,0.01519164,68462.0,68461.0,0.24277972]
[1730620966549,0.01519164,68462.0,68461.0,0.16991456]
[1730620967048,0.08824964,68462.0,68461.0,0.16991456]
[1730620967240,0.08824964,68462.0,68461.0,0.075059]
[1730620967946,0.08824964,68462.0,68461.0,0.074059]
[1730620967947,0.08324964,68462.0,68461.0,0.074059]
[1730620968143,0.09224964,68462.0,68461.0,0.075059]
[1730620968735,0.08424964,68462.0,68461.0,0.075059]
[1730620969039,0.09324964,68462.0,68461.0,0.075059]
[1730620969237,0.08424964,68462.0,68461.0,0.074059]
[1730620969635,0.09324964,68462.0,68461.0,0.075059]
[1730620970951,0.09324964,68462.0,68461.0,0.002]
[1730620971243,0.073063,68458.0,68457.0,0.21048369]
[1730620971848,0.073063,68458.0,68457.0,0.13759528]
[1730620972643,0.073063,68458.0,68457.0,0.13859528]
[1730620972644,0.082063,68458.0,68457.0,0.13859528]
[1730620973034,0.018,68458.0,68457.0,0.20412756]
[1730620973846,0.018,68458.0,68457.0,0.27701597]
[1730620974151,0.018,68458.0,68457.0,0.21248369]
[1730620974650,0.091063,68458.0,68457.0,0.21248369]
[1730620975054,0.091063,68458.0,68457.0,0.27701597]
[1730620975544,0.091063,68458.0,68457.0,0.21248369]
[1730620976047,0.091063,68458.0,68457.0,0.30729512]
[1730620977048,0.091063,68458.0,68457.0,0.3718274]
[1730620977946,0.018,68458.0,68457.0,0.3718274]
[1730620978251,0.018,68458.0,68457.0,0.30729512]
[1730620978948,0.018,68458.0,68457.0,0.29893899]
[1730620979145,0.018,68458.0,68457.0,0.23440671]
[1730620980139,0.091063,68458.0,68457.0,0.23440671]
[1730620985955,0.451863,68458.0,68457.0,0.04691143]
[1730620986248,0.3788,68458.0,68457.0,0.07294109]
[1730620986454,0.451863,68458.0,68457.0,0.07294109]
[1730620988256,0.3788,68458.0,68454.0,0.06453228]
[1730620988458,0.073066,68455.0,68454.0,0.06453228]
[1730620989360,0.073066,68455.0,68454.0,0.15214728]
[1730620989558,0.081066,68455.0,68454.0,0.15314728]
[1730620989858,0.089066,68455.0,68454.0,0.15414728]
[1730620990351,0.089066,68455.0,68454.0,0.06653228]
[1730620990959,0.089066,68455.0,68454.0,0.15416496]
[1730620991255,0.089066,68455.0,68454.0,0.06653228]
[1730620993349,0.089066,68455.0,68454.0,0.13959928]
[1730620995653,0.089066,68455.0,68454.0,0.2527315]
[1730620995852,0.089066,68455.0,68454.0,0.25268682]
[1730620997755,0.089066,68455.0,68454.0,0.25269119]
[1730620999363,0.016,68455.0,68454.0,0.25269119]
[1730621000553,0.016,68455.0,68454.0,0.25263039]
[1730621001167,0.016,68455.0,68454.0,0.3474883]
[1730621006470,0.016,68455.0,68454.0,0.63234604]
[1730621007167,0.016,68455.0,68454.0,0.56781376]
[1730621011674,0.016,68455.0,68454.0,0.67014235]
[1730621011863,0.016,68455.0,68454.0,0.56781376]
[1730621012587,0.3608,68462.0,68461.0,0.073059]
[1730621012871,0.3608,68462.0,68461.0,0.34511112]
[1730621013261,0.073057,68464.0,68463.0,0.073057]
[1730621013470,0.073057,68464.0,68463.0,0.16791491]
[1730621013779,0.073052,68468.0,68463.0,0.15939019]
[1730621013965,0.0307,68475.0,68468.0,0.073052]
[1730621014169,0.073047,68473.0,68468.0,0.25556991]
[1730621014462,0.073047,68473.0,68468.0,0.2800987]
[1730621015574,0.073047,68473.0,68468.0,0.16790991]
[1730621015775,0.01119135,68469.0,68468.0,0.16890991]
[1730621017274,0.01119135,68469.0,68468.0,0.23444219]
[1730621017474,0.01119135,68469.0,68468.0,0.32198947]
[1730621017974,0.009,68469.0,68468.0,0.32198947]
[1730621018770,0.009,68469.0,68468.0,0.23444219]
[1730621020080,0.073047,68473.0,68468.0,0.15939019]
[1730621020281,0.073047,68473.0,68472.0,0.21051368]
[1730621021283,0.077047,68473.0,68472.0,0.21051368]
[1730621021480,0.077047,68473.0,68472.0,0.13758028]
[1730621022674,0.077047,68473.0,68472.0,0.21051368]
[1730621022882,0.083047,68473.0,68472.0,0.21051368]
[1730621023080,0.07053228,68473.0,68472.0,0.001]
[1730621023272,0.07053228,68473.0,68468.0,0.074051]
[1730621023273,0.073048,68472.0,68468.0,0.001]
[1730621023472,0.06453228,68469.0,68466.0,0.073054]
[1730621023775,0.073053,68467.0,68466.0,0.073054]
[1730621024279,0.073058,68464.0,68463.0,0.073057]
[1730621024476,0.073058,68464.0,68463.0,0.16681708]
[1730621025273,0.073058,68464.0,68463.0,0.09376008]
[1730621026089,0.078058,68464.0,68463.0,0.09376008]
[1730621027279,0.084058,68464.0,68463.0,0.09376008]
[1730621032388,0.073058,68462.0,68461.0,0.13759128]
[1730621032589,0.073058,68462.0,68461.0,0.23135907]
[1730621033488,0.073058,68462.0,68461.0,0.31890635]
[1730621033794,0.14159028,68462.0,68461.0,0.09376779]
[1730621033988,0.14159028,68462.0,68455.0,0.3608]
[1730621034196,0.14159028,68462.0,68456.0,0.09396013]
[1730621034387,0.14159028,68462.0,68457.0,0.09396013]
[1730621034693,0.14459028,68462.0,68456.0,0.06453228]
[1730621034892,0.073063,68458.0,68457.0,0.09413179]
[1730621036483,0.073068,68453.0,68452.0,0.04453802]
[1730621036790,0.073071,68450.0,68448.0,0.06453228]
[1730621037693,0.433871,68450.0,68448.0,0.06453228]
[1730621038191,0.436871,68450.0,68448.0,0.06453228]
[1730621039187,0.438871,68450.0,68448.0,0.06453228]
[1730621042294,0.438871,68450.0,68448.0,0.13760528]
[1730621045696,0.438871,68450.0,68448.0,0.06453228]
[1730621049099,0.438871,68450.0,68449.0,0.06047067]
[1730621049501,0.438871,68450.0,68449.0,0.00219121]
[1730621054306,0.078071,68450.0,68449.0,0.00219121]
[1730621054711,0.438871,68450.0,68449.0,0.00219121]
[1730621059408,0.078071,68450.0,68449.0,0.00219121]
[1730621059610,0.438871,68450.0,68449.0,0.16971269]
[1730621060712,0.073073,68448.0,68447.0,0.07297015]
[1730621061019,0.073074,68447.0,68446.0,0.07297015]
[1730621061323,0.073074,68447.0,68439.0,0.16062928]
[1730621061324,0.073075,68446.0,68445.0,0.07297015]
[1730621061620,0.073075,68446.0,68445.0,0.09502931]
[1730621061621,0.104775,68446.0,68445.0,0.09502931]
[1730621062721,0.104775,68446.0,68445.0,0.09702931]
[1730621065113,0.14770225,68446.0,68445.0,0.09702931]
[1730621067409,0.14770225,68446.0,68445.0,0.18473504]
[1730621074220,0.14770225,68446.0,68445.0,0.09702931]
[1730621075420,0.104775,68446.0,68445.0,0.2105018]
[1730621075613,0.104775,68446.0,68445.0,0.09702931]
[1730621075614,0.073075,68446.0,68445.0,0.09702931]
[1730621077518,0.073075,68446.0,68445.0,0.21042374]
[1730621078117,0.073075,68446.0,68445.0,0.09702931]
[1730621078614,0.073075,68446.0,68445.0,0.21043824]
[1730621078921,0.073075,68446.0,68445.0,0.09702931]
[1730621079420,0.073075,68446.0,68445.0,0.21045668]
[1730621079614,0.073075,68446.0,68445.0,0.09702931]
[1730621080218,0.073075,68446.0,68445.0,0.21045144]
[1730621080421,0.073075,68446.0,68445.0,0.09702931]
[1730621082112,0.073075,68446.0,68445.0,0.2104682]
[1730621084022,0.073075,68446.0,68445.0,0.09702931]
[1730621084516,0.073075,68446.0,68445.0,0.21042297]
[1730621084919,0.073075,68446.0,68445.0,0.09702931]
[1730621085123,0.073075,68446.0,68445.0,0.21041095]
[1730621085423,0.073075,68446.0,68445.0,0.09702931]
[1730621085624,0.073075,68446.0,68445.0,0.21041478]
[1730621086325,0.073075,68446.0,68445.0,0.09702931]
[1730621086525,0.073075,68446.0,68445.0,0.17010531]
[1730621090526,0.073075,68446.0,68445.0,0.28350742]
[1730621091432,0.073075,68446.0,68445.0,0.28359156]
[1730621100541,0.073075,68446.0,68445.0,0.28358691]
[1730621113357,0.073075,68446.0,68445.0,0.28354719]
[1730621118454,0.073075,68446.0,68445.0,0.17018313]
[1730621118953,0.073075,68446.0,68445.0,0.075076]
[1730621119452,0.073075,68446.0,68445.0,0.28385029]
[1730621119655,0.073075,68446.0,68445.0,0.18860488]
[1730621120358,0.073075,68446.0,68445.0,0.075076]
[1730621120558,0.073072,68450.0,68449.0,0.073071]
[1730621120754,0.073072,68450.0,68449.0,0.23283074]
[1730621120953,0.073072,68450.0,68449.0,0.23279891]
[1730621121356,0.073072,68450.0,68449.0,0.23279456]
[1730621121544,0.073072,68450.0,68449.0,0.34623046]
[1730621121745,0.076072,68450.0,68449.0,0.34623046]
[1730621122050,0.078072,68450.0,68449.0,0.34623046]
[1730621122256,0.078072,68450.0,68449.0,0.23279456]
[1730621125165,0.078072,68450.0,68449.0,0.34621231]
[1730621125552,0.078072,68450.0,68449.0,0.34618879]
[1730621145171,0.078072,68450.0,68449.0,0.23276257]
[1730621146165,0.005,68450.0,68449.0,0.3458416]
[1730621148667,0.001,68450.0,68449.0,0.3458416]
[1730621148868,0.003,68450.0,68449.0,0.3458416]
[1730621149076,0.003,68450.0,68449.0,0.34526316]
[1730621149775,0.076071,68450.0,68449.0,0.34526316]
[1730621152775,0.076071,68450.0,68449.0,0.20765988]
[1730621152974,0.14060328,68450.0,68449.0,0.20765988]
[1730621153180,0.14060328,68450.0,68449.0,0.094737]
[1730621153575,0.14060328,68450.0,68449.0,0.16781113]
[1730621153779,0.14060328,68450.0,68449.0,0.094737]
[1730621154483,0.14060328,68450.0,68449.0,0.1677992]
[1730621155281,0.14060328,68450.0,68449.0,0.0730622]
[1730621155576,0.06753228,68450.0,68449.0,0.0730622]
[1730621155775,0.06753228,68450.0,68434.0,0.10232859]
[1730621155776,0.073072,68449.0,68448.0,0.0231622]
[1730621155975,0.13760428,68449.0,68448.0,0.11820274]
[1730621156197,0.13760428,68449.0,68448.0,0.0231622]
[1730621156572,0.073077,68444.0,68443.0,0.08769196]
[1730621156774,0.13760928,68444.0,68443.0,0.18225934]
[1730621157180,0.16850928,68444.0,68443.0,0.18225934]
[1730621158887,0.16850928,68444.0,68443.0,0.09856738]
[1730621159476,0.16850928,68444.0,68443.0,0.10256738]
[1730621159477,0.76200156,68444.0,68443.0,0.10256738]
[1730621159672,0.69746928,68444.0,68443.0,0.008]
[1730621159876,0.74110813,68444.0,68443.0,0.008]
[1730621161494,0.80564041,68444.0,68443.0,0.008]
[1730621161787,0.073079,68443.0,68433.0,0.08769196]
[1730621162090,0.073079,68443.0,68428.0,0.00012957]
[1730621162091,0.3608,68434.0,68430.0,0.08760532]
[1730621162302,0.06453228,68432.0,68431.0,0.09485107]
[1730621163788,0.13762228,68432.0,68431.0,0.09485107]
[1730621164583,0.13862228,68432.0,68431.0,0.10885107]
[1730621164980,0.07409,68432.0,68431.0,0.10885107]
[1730621166092,0.07409,68432.0,68431.0,0.12185107]
[1730621166093,0.07509,68432.0,68431.0,0.12185107]
[1730621166592,0.11788895,68432.0,68431.0,0.027]
[1730621177789,0.11788895,68432.0,68431.0,0.12142722]
[1730621178190,0.11788895,68432.0,68431.0,0.12146357]
[1730621178405,0.11788895,68432.0,68431.0,0.1214638]
[1730621179099,0.11788895,68432.0,68431.0,0.027]
[1730621179295,0.11788895,68432.0,68431.0,0.12151793]
[1730621180297,0.18242123,68432.0,68431.0,0.027]
[1730621180493,0.21542123,68432.0,68431.0,0.027]
[1730621181194,0.21542123,68432.0,68431.0,0.12166349]
[1730621181401,0.21542123,68432.0,68431.0,0.12166117]
[1730621181599,0.11788895,68432.0,68431.0,0.12166117]
[1730621184110,0.11788895,68432.0,68431.0,0.1216719]
[1730621185309,0.11788895,68432.0,68431.0,0.20927722]
[1730621188207,0.11788895,68432.0,68431.0,0.1216719]
[1730621188714,0.11788895,68432.0,68431.0,0.12177426]
[1730621190612,0.11788895,68432.0,68431.0,0.23478617]
[1730621192817,0.11788895,68432.0,68431.0,0.027]
[1730621193910,0.11788895,68432.0,68431.0,0.23499626]
[1730621194101,0.11788895,68432.0,68431.0,0.12189046]
[1730621194299,0.11788895,68432.0,68431.0,0.23492361]
[1730621194704,0.11788895,68432.0,68431.0,0.12189046]
[1730621194900,0.11788895,68432.0,68431.0,0.2349156]
[1730621195313,0.11788895,68432.0,68431.0,0.12189046]
[1730621196710,0.11788895,68432.0,68431.0,0.23493067]
[1730621200599,0.11788895,68432.0,68431.0,0.23490619]
[1730621203015,0.11788895,68432.0,68431.0,0.23487546]
[1730621204117,0.47868895,68432.0,68431.0,0.23487546]
[1730621205115,0.47868895,68432.0,68431.0,0.20959439]
[1730621206417,0.47868895,68432.0,68431.0,0.12183535]
[1730621207716,0.11788895,68432.0,68431.0,0.12183535]
[1730621207916,0.47868895,68432.0,68431.0,0.12183535]
[1730621209116,0.11788895,68432.0,68431.0,0.12183535]
[1730621209513,0.47868895,68432.0,68431.0,0.12183535]
[1730621210708,0.11788895,68432.0,68431.0,0.12183535]
[1730621210918,0.47868895,68432.0,68431.0,0.12183535]